Cogmind - Beta 17 @@@ ROGUE MODE // 2026.06.28 @ 20:56:57 Player: Bikerider58 Result: Self-destructed Performance ------------- Evolutions (3) 1500 Regions Visited (8) 1600 Robots Destroyed (195) 975 Value Destroyed (6283) 6283 Prototype IDs (13) 260 Alien Tech Used (0) 0 Bonus (2943) 2943 TOTAL SCORE: 13561 Bonus ------- High Alert Combat Kills 959 Follower Combat Kills 143 Entered Garrisons 400 Used RIF Installer 1500 Friendly Fire -59 Cogmind --------- Core Integrity 425/700 Matter 170/300 Energy 46/100 System Corruption 12% Temperature Cool (0) Movement Rolling (125) Ox3 Location -7/Factory Parts ------- > --- POWER (1) -------- (None) > --- PROPULSION (4) --- Advanced Myomer Leg Armored Wheel > --- UTILITY (4) ------ Cooling System High-capacity Storage Unit Seismic Detector > --- WEAPON (4) ------- Advanced Variable Charge Gun > --- INVENTORY (20) --- Light Treads Improved Cooling System Huge Storage Unit High-capacity Battery (143) Improved Salvage Targeting Computer Precision Matter Filter Transmission Jammer Shield Generator Ion Burst Cannon Ion Burst Cannon Tesla Bomb Launcher Precision Grenade Launcher Smartbomb Launcher Remote Datajack Plasma Cutter Katana Peak State ------------ > --- POWER ------------ Heavy Deuterium Engine > --- PROPULSION ------- Light Treads Improved Heavy Treads Advanced Myomer Leg > --- UTILITY ---------- High-capacity Storage Unit Seismic Detector Core Analyzer Precision Matter Filter > --- WEAPON ----------- Heavy Particle Gun Advanced Variable Charge Gun Ion Burst Cannon Ion Burst Cannon > --- INVENTORY -------- Light Treads Armored Wheel Cooling System Improved Cooling System Huge Storage Unit High-capacity Battery Improved Salvage Targeting Computer Transmission Jammer Shield Generator Improved Assault Rifle Gauss Rifle Gauss Rifle Tesla Bomb Launcher Precision Grenade Launcher Smartbomb Launcher Remote Datajack Plasma Cutter Katana [Rating: 71] Favorites ----------- Power Cooled Ion Engine Engine Cooled Ion Engine Power Core Fission Core Propulsion Light Treads Treads Light Treads Leg Advanced Myomer Leg Wheel Armored Wheel Utility High-capacity Storage Unit Device Shield Generator Storage High-capacity Storage Unit Processor Core Analyzer Hackware Relay Coupler [NC] Protection Light Armor Plating Weapon Improved Assault Rifle Energy Gun Heavy EM Pulse Gun Energy Cannon Ion Burst Cannon Ballistic Gun Improved Assault Rifle Launcher Precision Grenade Launcher Special Weapon Remote Datajack Impact Weapon Mace Slashing Weapon Katana Build | -11 -10 -10 -9 -9 -9 -8 -8 -7 ------- Run | Yrd Mat Min Mat Sto Gar Mat Gar Fac Slots Evolved 6 | . . . 2 . . 2 . 2 Power . | . . . . . . . . . Propulsion 2 | . . . . . . 1 . 1 Utility 2 | . . . 1 . . 1 . . Weapon 2 | . . . 1 . . . . 1 Parts Attached 124 | 6 14 . 28 2 10 19 17 28 Power 15 | 1 3 . 6 . 1 2 . 2 Engine 12 | 1 3 . 5 . 1 1 . 1 Core 3 | . . . 1 . . 1 . 1 Reactor . | . . . . . . . . . Propulsion 32 | 2 3 . 6 . 2 6 7 6 Treads 27 | 2 1 . 6 . 2 6 6 4 Leg 1 | . . . . . . . . 1 Wheel 4 | . 2 . . . . . 1 1 Hover . | . . . . . . . . . Flight . | . . . . . . . . . Utility 36 | 1 3 . 8 1 4 7 4 8 Device 16 | . 2 . 4 . 1 3 1 5 Storage 4 | 1 1 . 2 . . . . . Processor 3 | . . . . . . 3 . . Hackware 1 | . . . . . . . . 1 Protection 12 | . . . 2 1 3 1 3 2 Artifact . | . . . . . . . . . Weapon 41 | 2 5 . 8 1 3 4 6 12 Energy Gun 9 | . 2 . 2 . . 2 1 2 Energy Cannon 4 | . . . . . . . 1 3 Ballistic Gun 19 | 2 3 . 6 . 1 2 2 3 Ballistic Cannon . | . . . . . . . . . Launcher 5 | . . . . . . . 2 3 Special Weapon 2 | . . . . . 1 . . 1 Impact Weapon 1 | . . . . 1 . . . . Slashing Weapon 1 | . . . . . 1 . . . Piercing Weapon . | . . . . . . . . . Special Melee Weapon . | . . . . . . . . . Unidentified Prototypes 11 | . . . 3 . . 2 . 6 Corrupted Parts 1 | . . . . . . . . 1 System Corruption 6 | . . . . . . . . 6 Parts Lost 38 | . 6 . 8 . 1 5 2 16 Power 3 | . 1 . . . . . . 2 Propulsion 8 | . 2 . 1 . . . . 5 Utility 10 | . 1 . 2 . 1 3 . 3 Weapon 17 | . 2 . 5 . . 2 2 6 Highest Loss Streak 9 | . 3 . 2 . 1 3 2 9 To Critical Strikes 1 | . . . . . . 1 . . Average Backups 16 | . 9 14 16 20 19 18 18 18 Power . | . 1 1 . 1 1 1 1 . Propulsion 2 | . . 2 3 4 4 4 2 1 Utility 5 | . 3 5 6 7 6 5 5 8 Weapon 5 | . 3 6 4 7 6 5 8 6 Tool/Special . | . . . . . . . . . Unused Backups 24 | . 3 . 8 . . 3 1 9 Power 3 | . . . 1 . . 2 . . Propulsion 5 | . 3 . 2 . . . . . Utility 12 | . . . 2 . . 1 1 8 Weapon 4 | . . . 3 . . . . 1 Tool/Special . | . . . . . . . . . Average Slot Usage (%) 97 | . 93 100 96 100 99 99 99 94 Engine 7 | . 12 14 7 11 11 3 . 5 Core 2 | . . . 3 . . 5 9 1 Treads 21 | . 20 14 20 22 22 27 20 20 Wheel 3 | . 6 14 1 . . . 6 5 Device 10 | . 13 14 12 11 7 6 9 6 Storage 10 | . 14 14 12 11 11 9 9 7 Processor 3 | . . . . . . 9 9 6 Protection 7 | . . . 6 11 13 11 8 5 Energy Gun 6 | . 6 28 8 . . 5 11 3 Ballistic Gun 21 | . 18 . 23 33 29 21 14 22 Peak Build Rating 71 | 6 12 12 25 23 23 34 37 71 Average Rating 23 | 5 8 12 19 22 21 28 34 42 On Entrance 18 | . 6 12 12 23 23 19 34 37 Avg Prop Armor Cover (%) 11 | . 11 11 9 . . . 10 13 Naked Turns . | . . . . . . . . . Heaviest Build 81 | 10 30 30 62 62 63 65 67 81 Greatest Support 95 | 40 40 12 46 46 46 63 63 95 Greatest Overweight (x) 6 | . 2 2 2 1 1 1 5 6 Average Overweight (x) 1 | . . 2 . 1 1 . 3 4 Largest Inventory Capacity 20 | 8 15 15 20 20 20 20 20 20 Average Capacity 18 | 7 14 15 17 20 20 20 20 20 Most Carried 20 | 2 15 15 20 20 20 20 20 20 Average Carried 16 | . 9 14 16 20 19 19 19 19 Final Capacity 20 | 8 15 15 20 20 20 20 20 20 Final Carried 20 | 2 14 15 20 20 19 20 20 17 Class Distribution -------------------- 26% | Tank 26% | Mutant 26% | Scavenger-Gunner 13% | Scavenger-Tank 3% | Scavenger-Mutant Dominant Class ---------------- Mutant | -10/Materials Mutant | -10/Mines Tank | -9/Materials Tank | -9/Storage Tank | -9/Garrison Scavenger-Gunner | -8/Materials Scavenger-Gunner | -8/Garrison Scavenger-Gunner | -7/Factory Resources | -11 -10 -10 -9 -9 -9 -8 -8 -7 ----------- Run | Yrd Mat Min Mat Sto Gar Mat Gar Fac Matter Collected 4103 | 256 538 . 663 168 779 575 540 584 Remotely . | . . . . . . . . . Salvage Created 7568 | 105 1008 318 1680 274 1394 1030 1061 698 Parts 488 | 8 62 22 113 20 100 57 65 41 Haulers Intercepted 8 | . 2 . 4 . . 1 . 1 Recyclers Shooed 4 | 1 2 1 . . . . . . Parts Field Recycled . | . . . . . . . . . Retrieved Matter . | . . . . . . . . . Parts Self-Destructed . | . . . . . . . . . Prevented . | . . . . . . . . . Parts Restored . | . . . . . . . . . Kills | -11 -10 -10 -9 -9 -9 -8 -8 -7 ------- Run | Yrd Mat Min Mat Sto Gar Mat Gar Fac Combat Hostiles Destroyed 158 | . 15 7 30 5 37 16 27 21 Guns 142 | . 15 5 29 5 37 16 23 12 Cannons 3 | . . . . . . . . 3 AOE 13 | . . 2 1 . . . 4 6 Classes Destroyed 17 | 2 5 1 3 1 1 1 . 3 Worker 6 | . 1 . 1 1 . 1 . 2 Builder 5 | . 1 . 2 . . . . 2 Tunneler 8 | 3 2 3 . . . . . . Hauler 8 | . 2 . 4 . . 1 . 1 Recycler 4 | 1 1 . 1 . . 1 . . Operator 3 | . . . 1 1 . 1 . . Watcher 8 | . 2 . 4 . 1 1 . . Swarmer 29 | . . 3 5 . 13 . 8 . Grunt 82 | . 15 4 15 2 18 10 13 5 Brawler 1 | . . . 1 . . . . . Duelist 1 | . . . . 1 . . . . Sentry 26 | . . . 9 2 5 4 5 1 Demolisher 2 | . . . . . . . . 2 Specialist 1 | . . . . . . . . 1 Hunter 5 | . . . . . . 2 . 3 Programmer 6 | . . . . . 1 . 1 4 Assembled 5 | . . . . . . . . 5 Best Kill Streak 9 | 3 4 4 5 5 6 4 5 9 Combat Bots Only 8 | . 3 3 4 3 6 3 5 8 Max Kills in Single Turn 3 | 1 1 2 2 2 2 1 2 3 Gunslinging 1 | . . . 1 . 1 . . 1 Exploded 3 | . . 2 1 . . . 2 3 Melee . | . . . . . . . . . Uniques/NPCs Destroyed . | . . . . . . . . . Combat | -11 -10 -10 -9 -9 -9 -8 -8 -7 -------- Run | Yrd Mat Min Mat Sto Gar Mat Gar Fac Hostile Shots Fired 828 | . 90 9 121 20 113 96 112 267 Missed 206 | . 17 3 25 7 26 23 33 72 Hits 622 | . 73 6 96 13 87 73 79 195 Melee 5 | . . . 1 . . . . 4 Projectile 617 | . 73 6 95 13 87 73 79 191 AOE 12 | . . . . . . . . 12 Critical Strikes 22 | . . . 3 . 2 6 4 7 Part Disruptions 2 | . . . . . . . . 2 Damage Taken 8700 | . 913 138 1198 135 775 1262 1118 3161 Core 898 | . 108 48 167 8 107 132 53 275 Absorbed by Shields 407 | . . . 89 53 188 . 48 29 Ignored by Resistances 5 | . . . . . . . . 5 Core Remaining (%) 58 | 100 . 37 . . 29 . 66 . Volleys Fired 438 | 15 102 13 70 16 66 49 65 42 Largest 4 | 2 2 2 3 3 3 3 3 4 Hottest 200 | 40 90 90 135 69 69 133 155 200 Shots Fired 1065 | 30 178 26 189 46 191 145 164 96 Gun 1032 | 30 178 26 189 46 191 145 156 71 Cannon 17 | . . . . . . . 3 14 Launcher 11 | . . . . . . . 5 6 Special 5 | . . . . . . . . 5 Kinetic 790 | 30 152 . 122 46 191 127 74 48 Thermal 137 | . . . . . . 18 82 37 Explosive 11 | . . . . . . . 5 6 Electromagnetic 122 | . 26 26 67 . . . 3 . Robot Hit Streak 24 | 7 12 7 12 16 12 14 24 15 Robot Miss Streak 6 | 2 6 1 4 2 3 5 3 4 Penetration Max 1 | . . . . . . . . 1 Secondary Targets 25 | . 1 . 7 . 7 2 4 4 Max Gunslinging Chain 2 | . 1 . 1 . 1 1 1 2 Shots Hit Robots 700 | 20 112 18 122 31 131 99 109 58 Core Hits 351 | 8 49 12 64 12 59 48 50 49 Critical Kills 3 | . . . 1 . 1 . . 1 Critical Parts Destroyed 2 | . . . 1 . 1 . . . Critical Strikes 10 | . 1 . 3 . 3 1 1 1 Burn 2 | . . . . . . 1 1 . Destroy 5 | . . . 2 . 2 . . 1 Corrupt 2 | . 1 . 1 . . . . . Sever 1 | . . . . . 1 . . . Melee Attacks 21 | . . . . 1 18 2 . . Impact 1 | . . . . 1 . . . . Slashing 20 | . . . . . 18 2 . . Piercing . | . . . . . . . . . Sneak Attacks . | . . . . . . . . . Combat Hostiles . | . . . . . . . . . Follow-up Attacks . | . . . . . . . . . Damage Inflicted 13015 | 168 1430 470 2109 501 2323 1517 2367 2130 Guns 10646 | 168 1416 286 1931 501 1903 1498 1970 973 Cannons 422 | . . . . . . . 21 401 Explosions 1477 | . . 184 161 . . . 376 756 Melee 420 | . . . . . 420 . . . Ramming 50 | . 14 . 17 . . 19 . . Kinetic 7657 | 168 1146 . 1329 501 1903 1234 765 611 Thermal 2577 | . . 184 161 . . 264 1205 763 Explosive 1132 | . . . . . . . 376 756 Electromagnetic 1179 | . 270 286 602 . . . 21 . Impact . | . . . . . . . . . Slashing 420 | . . . . . 420 . . . Piercing . | . . . . . . . . . Highest Corruption 12 | . . . 1 1 2 . 1 12 Average Corruption 1 | . . . 1 1 1 . 1 6 Corruption Purged . | . . . . . . . . . Corruption Blocked . | . . . . . . . . . Effects 34 | . . . 3 1 12 . 9 9 Message Errors 4 | . . . 1 . 3 . . . Matter Fused 10 | . . . 1 . 2 . 3 4 Heat Flow Errors 3 | . . . . . 1 . 1 1 Energy Discharges 6 | . . . . 1 2 . 1 2 Parts Rejected 1 | . . . . . . . . 1 Data Loss (minor) 3 | . . . . . 1 . 2 . Data Loss (major) 4 | . . . 1 . . . 2 1 Misfires 2 | . . . . . 2 . . . Weapon Failures 1 | . . . . . 1 . . . Overload Shots . | . . . . . . . . . Overflow Damage 197 | . . . 6 . 110 . 67 14 Projectiles 14 | . . . . . . . . 14 Explosions 73 | . . . 6 . . . 67 . Melee 110 | . . . . . 110 . . . Knockbacks . | . . . . . . . . . Impact . | . . . . . . . . . Kinetic . | . . . . . . . . . Secondary . | . . . . . . . . . Self-Inflicted Damage 160 | . . 64 96 . . . . . Shots 5 | . . 2 3 . . . . . Rammed 10 | . 3 . 4 . . 3 . . Targets Rammed 10 | . 3 . 4 . . 3 . . Kicked . | . . . . . . . . . Crushed . | . . . . . . . . . Highest Temperature 490 | . 18 12 153 16 166 237 291 490 Average Temperature 56 | . 10 8 31 5 22 50 91 126 Received Heat Transfer 2961 | . 510 39 444 44 242 486 500 696 Effects 1 | . . . . . . . . 1 Shutdowns 1 | . . . . . . . . 1 Siege Activations . | . . . . . . . . . Martial Activations . | . . . . . . . . . Shielding Activations . | . . . . . . . . . Robots Disrupted . | . . . . . . . . . Combat Hostiles . | . . . . . . . . . Robots Corrupted 1 | . 1 . . . . . . . Combat Hostiles . | . . . . . . . . . Parts Fried 3 | . 1 . 2 . . . . . Impact Corruptions . | . . . . . . . . . Robots Melted . | . . . . . . . . . Combat Hostiles . | . . . . . . . . . Parts Melted 10 | . . . . . . 4 6 . Heat Transferred 4342 | . . 250 250 . . 592 2195 1055 Parts Sabotaged . | . . . . . . . . . Parts Stolen . | . . . . . . . . . Parts Stripped . | . . . . . . . . . Power Chain Reactions 6 | . . 3 3 . . . . . Alert | -11 -10 -10 -9 -9 -9 -8 -8 -7 ------- Run | Yrd Mat Min Mat Sto Gar Mat Gar Fac Maximum Alert Level 4 | . . . 2 1 4 3 3 2 Low Security (%) 32 | 100 100 100 17 82 4 . . 24 Level 1 26 | . . . 71 17 14 . 12 58 Level 2 18 | . . . 10 . 9 71 29 17 Level 3 19 | . . . . . 50 27 58 . Level 4 3 | . . . . . 20 . . . Level 5 . | . . . . . . . . . High Security . | . . . . . . . . . Max Security . | . . . . . . . . . Peak Influence 1333 | 10 137 191 457 241 1333 761 943 494 Initial 649 | . . 39 19 189 159 649 323 494 Average 401 | 1 66 119 272 185 807 533 691 270 Influence Increases 4981 | 20 491 217 1105 186 1184 617 640 521 Destroy 0b10 Robot/C 3160 | . 300 140 640 100 740 380 540 320 Destroy 0b10 Robot/NC 235 | 20 45 15 65 10 20 30 . 30 Destroy Leader 550 | . 68 30 206 40 20 104 20 62 Allied During Kill 44 | . . . 18 . . 26 . . Successful Hack 75 | . . . 12 21 14 . 14 14 Select Force Hacks 90 | . 30 . 60 . . . . . Disable Machine 210 | . . 15 30 15 30 60 . 60 Anti-Garrison Action 150 | . . . . . 150 . . . Destroy Structure 152 | . 3 17 14 . 45 17 21 35 Lose Combat Pursuer 315 | . 45 . 60 . 165 . 45 . Influence Decreases 4706 | 20 390 268 706 390 96 1452 195 1189 Entered New Map 1747 | . . 62 31 260 86 684 175 449 Time Decay 2059 | 20 340 206 555 130 . 398 . 410 Lost Part 370 | . 50 . 80 . 10 50 20 160 Lost Ally 80 | . . . 40 . . 20 . 20 Purge Threat 450 | . . . . . . 300 . 150 Squads Dispatched 14 | . 3 . 5 1 . 1 . 4 Investigation 5 | . 2 . 2 . . 1 . . Extermination 2 | . . . . . . . . 2 Reinforcement 7 | . 1 . 3 1 . . . 2 Assault . | . . . . . . . . . Garrison . | . . . . . . . . . Intercept . | . . . . . . . . . Searches Triggered . | . . . . . . . . . Construction Impeded . | . . . . . . . . . Haulers Reinforced 1 | . . . . . . . . 1 Active Scanning Responses . | . . . . . . . . . Cargo Convoy Interrupts 1 | . . . . . . . . 1 Stealth | -11 -10 -10 -9 -9 -9 -8 -8 -7 --------- Run | Yrd Mat Min Mat Sto Gar Mat Gar Fac Distress Signals 10 | . 3 . 2 . 4 1 . . Communications Jammed 22 | . . . . . . . . 22 Distress Signals 22 | . . . . . . . . 22 Times Spotted 234 | . 34 5 45 6 45 27 27 45 Peak Tracking Total 12 | . 5 2 6 3 6 4 6 12 Tactical Retreats 14 | . 2 . 4 . 6 . 2 . Traps | -11 -10 -10 -9 -9 -9 -8 -8 -7 ------- Run | Yrd Mat Min Mat Sto Gar Mat Gar Fac Traps Triggered 13 | . 3 . 1 1 3 1 1 3 Indirectly . | . . . . . . . . . Trap Hack Attempts . | . . . . . . . . . Triggered . | . . . . . . . . . Disarmed . | . . . . . . . . . Reprogrammed . | . . . . . . . . . Reused . | . . . . . . . . . Traps Extracted . | . . . . . . . . . Installed . | . . . . . . . . . Triggered . | . . . . . . . . . Most Traps Carried 1 | . . . . . 1 1 1 1 Machines | -11 -10 -10 -9 -9 -9 -8 -8 -7 ---------- Run | Yrd Mat Min Mat Sto Gar Mat Gar Fac Machines Disabled 15 | . . 1 2 1 3 4 . 4 Max in Single Turn 3 | . . 1 1 1 1 . . 3 Garrison Relay 1 | . . . . . 1 . . . Machines Repaired . | . . . . . . . . . Machines Dismantled 1 | . . . . . 1 . . . Machines Sabotaged . | . . . . . . . . . Overloaded Fab Kills . | . . . . . . . . . Hacking | -11 -10 -10 -9 -9 -9 -8 -8 -7 --------- Run | Yrd Mat Min Mat Sto Gar Mat Gar Fac Machines Accessed 26 | . 3 . 8 4 2 4 1 4 Terminals 15 | . 2 . 4 3 2 2 1 1 Fabricators 2 | . . . . . . . . 2 Repair Stations . | . . . . . . . . . Recycling Units 4 | . 1 . 2 . . . . 1 Scanalyzers 3 | . . . 2 . . 1 . . Garrison Access 2 | . . . . 1 . 1 . . Total Hacks 70 | . 5 . 32 10 3 10 1 9 Successful 39 | . 1 . 21 5 1 7 1 3 Failed 31 | . 4 . 11 5 2 3 . 6 Catastrophic 6 | . 1 . 4 1 . . . . Database Lockouts . | . . . . . . . . . Manual 23 | . 5 . 12 . . 2 . 4 Terminals 35 | . 4 . 10 9 3 5 1 3 Fabricators 4 | . . . . . . . . 4 Repair Stations . | . . . . . . . . . Recycling Units 5 | . 1 . 2 . . . . 2 Scanalyzers 23 | . . . 20 . . 3 . . Garrison Access 3 | . . . . 1 . 2 . . Terminal Hacks 11 | . . . 1 4 1 3 1 1 Part Schematic 1 | . . . . 1 . . . . Prototype ID Bank 1 | . . . . 1 . . . . Branch Access Points 1 | . . . 1 . . . . . Emergency Access Points 2 | . . . . . 1 . 1 . Unreport Threat 3 | . . . . . . 2 . 1 Hauler Manifests 1 | . . . . . . 1 . . Registered Components 1 | . . . . 1 . . . . Zone Layout 1 | . . . . 1 . . . . Fabricator Hacks 1 | . . . . . . . . 1 Network Status 1 | . . . . . . . . 1 Repair Station Hacks . | . . . . . . . . . Recycling Unit Hacks . | . . . . . . . . . Scanalyzer 20 | . . . 18 . . 2 . . Insert Component 6 | . . . 6 . . . . . Analyze 8 | . . . 8 . . . . . Retrieve Study 6 | . . . 4 . . 2 . . Garrison Access Hacks 3 | . . . . 1 . 2 . . Unlock Access 2 | . . . . 1 . 1 . . Coupler Status 1 | . . . . . . 1 . . Unauthorized Hacks 4 | . 1 . 2 . . . . 1 Terminals . | . . . . . . . . . Fabricators 1 | . . . . . . . . 1 Haulers 1 | . . . . . . . . 1 Repair Stations . | . . . . . . . . . Recycling Units 3 | . 1 . 2 . . . . . Tunnel 3 | . 1 . 2 . . . . . Scanalyzers . | . . . . . . . . . Garrison Access . | . . . . . . . . . Data Cores Recovered . | . . . . . . . . . Used . | . . . . . . . . . Hacking Detections 20 | . 2 . 6 4 1 3 . 4 Full Trace Events . | . . . . . . . . . Feedback Events . | . . . . . . . . . Feedback Blocked . | . . . . . . . . . Robot Schematics Acquired . | . . . . . . . . . Robots Built . | . . . . . . . . . Authchips . | . . . . . . . . . Time . | . . . . . . . . . Total Robot Build Rating . | . . . . . . . . . Part Schematics Acquired 6 | . . . 5 1 . . . . Parts Built . | . . . . . . . . . Authchips . | . . . . . . . . . Time . | . . . . . . . . . Total Part Build Rating . | . . . . . . . . . Part Studies Acquired 6 | . . . 4 . . 2 . . Parts Repaired . | . . . . . . . . . Time . | . . . . . . . . . Parts Recycled . | . . . . . . . . . Recycled Matter . | . . . . . . . . . Retrieved Matter . | . . . . . . . . . Retrieved Components . | . . . . . . . . . Parts Scanalyzed 5 | . . . 5 . . . . . Part Schematics Acquired 5 | . . . 5 . . . . . Parts Damaged . | . . . . . . . . . Bothacking | -11 -10 -10 -9 -9 -9 -8 -8 -7 ------------ Run | Yrd Mat Min Mat Sto Gar Mat Gar Fac Used RIF Installer 3 | . . . . . 1 . 2 . Signal Jammer 1 | . . . . . . . 1 . Structural Interface 1 | . . . . . . . 1 . Robots Hacked 2 | . . . . . . . . 2 Non-combat 2 | . . . . . . . . 2 Combat . | . . . . . . . . . Robot Hacks Applied 3 | . . . . . . . . 3 amplify_resonance 1 | . . . . . . . . 1 formatsys_low 1 | . . . . . . . . 1 formatsys_high 1 | . . . . . . . . 1 Relay Couplers Released 8 | . . . . . 8 . . . Machine Destruction 4 | . . . . . 4 . . . Programmers 4 | . . . . . 4 . . . Attached 1 | . . . . . . . . 1 Fabnet Peak Effective % . | . . . . . . . . . Robots Rewired 2 | . . . . . 2 . . . Allies Hacked . | . . . . . . . . . Hacks Repelled . | . . . . . . . . . Allies | -11 -10 -10 -9 -9 -9 -8 -8 -7 -------- Run | Yrd Mat Min Mat Sto Gar Mat Gar Fac Total Allies 6 | . . 2 . . 2 . . 2 Largest Group 2 | . . 2 2 . 2 2 . 1 Highest-Rated Group 107 | . . 41 41 . 59 59 . 107 Highest-Rated Ally 107 | . . 31 31 . 39 39 . 107 Total Orders . | . . . . . . . . . Ally Attacks 39 | . . . 11 . . 28 . . Total Damage 830 | . . . 126 . . 704 . . Kills 7 | . . . 2 . . 5 . . Allies Corrupted . | . . . . . . . . . Allies Melted . | . . . . . . . . . Intel | -11 -10 -10 -9 -9 -9 -8 -8 -7 ------- Run | Yrd Mat Min Mat Sto Gar Mat Gar Fac Active Infowar (turns) 1112 | . 302 . 2 . 54 371 . 383 Sensors 147 | . . . . . . 147 . . Traps 54 | . . . . . 54 . . . Seismic 911 | . 302 . 2 . . 224 . 383 Jamming 48 | . . . . . . . . 48 Robot Analysis Total . | . . . . . . . . . Derelict Logs Recovered 1 | . . 1 . . . . . . Drone Launches . | . . . . . . . . . Drone Recoveries . | . . . . . . . . . Exploration | -11 -10 -10 -9 -9 -9 -8 -8 -7 ------------- Run | Yrd Mat Min Mat Sto Gar Mat Gar Fac Turns Passed 7884 | 135 1144 437 1637 278 1378 956 939 980 Spaces Moved 3407 | 55 575 296 655 108 494 372 381 471 Core 3 | 3 . . . . . . . . Treads 2010 | 52 222 . 549 108 494 372 145 68 Legs . | . . . . . . . . . Wheels 1394 | . 353 296 106 . . . 236 403 Hover . | . . . . . . . . . Flight . | . . . . . . . . . Fastest Speed 50 | 50 115 120 120 200 200 160 155 125 Average Speed 167 | 154 134 120 183 200 200 182 178 156 Slowest Speed 280 | 160 240 120 240 200 200 200 280 280 Overloaded Moves . | . . . . . . . . . Propulsion Burnouts . | . . . . . . . . . Robots Hopped . | . . . . . . . . . Potential Cave-ins . | . . . . . . . . . Cave-ins Triggered . | . . . . . . . . . Exploration Rate (%) 47 | 3 76 64 68 30 68 43 57 17 Regions Visited 8 Branch Regions 2 Pre-discovered Areas 3 | . 1 . 2 . . . . . Known Exits Taken 3 | . . . 1 1 . 1 . . Unknown Exits Taken 3 | 1 1 1 . . . . . . Scrap Searched . | . . . . . . . . . Spaces Dug 2 | . . . . . . 2 . . Terrain Destroyed 75 | . . 17 12 . . 2 3 41 Melee 2 | . . . . . . 2 . . Projectile 3 | . . . . . . . 2 1 AOE 70 | . . 17 12 . . . 1 40 Terrain Rammed . | . . . . . . . . . Walls Destroyed . | . . . . . . . . . Machines Disabled . | . . . . . . . . . Actions | -11 -10 -10 -9 -9 -9 -8 -8 -7 --------- Run | Yrd Mat Min Mat Sto Gar Mat Gar Fac Total 4650 | 78 771 352 944 133 693 534 509 636 Wait 395 | 1 51 41 122 2 61 57 21 39 Move 3401 | 54 574 295 654 108 493 372 380 471 Hop . | . . . . . . . . . Pick Up 82 | 2 19 2 25 1 3 10 4 16 Fast Attach 49 | 6 5 . 12 . 3 9 4 10 Attach 32 | . 6 . 7 . 2 4 2 11 Detach 9 | . . . 3 . . 1 . 5 Swap 92 | . 6 . 14 3 15 10 21 23 Drop 96 | . 5 1 33 2 7 17 12 19 Fire 438 | 15 102 13 70 16 66 49 65 42 Melee 21 | . . . . 1 18 2 . . Ram . | . . . . . . . . . Kick . | . . . . . . . . . Crush 10 | . 3 . 4 . . 3 . . Escape Stasis 2 | . . . . . 2 . . . Rewire 15 | . . . . . 15 . . . Trap . | . . . . . . . . . Miscellaneous 8 | . . . . . 8 . . . Route ------- -11/Scrapyard -10/Materials (discovered 3 exits: *Mat x2 / [*Min]) -10/Mines (discovered 2 exits: *Mat / [*Exi]) -9/Materials (discovered 4 exits: *Mat x2 / *Min / *Sto) -9/Storage -9/Garrison (discovered 2 exits: *Mat x2) -8/Materials -8/Garrison (discovered 2 exits: *Fac x2) -7/Factory (discovered 1 exit: [*Fac]) History --------- Turn | Location | Event 15 | -11/Scrapyard | Discovered new exit (range 16) 136 | -11/Scrapyard | Entered Materials 306 | -10/Materials | Discovered new exit (range 12) 312 | -10/Materials | Build established: Mutant 740 | -10/Materials | Lost 3 parts (1p2n) 785 | -10/Materials | Discovered new exit (range 15) 988 | -10/Materials | Discovered new exit (range 12) 1280 | -10/Materials | Entered Mines 1288 | -10/Mines | Discovered new exit (range 11) 1300 | -10/Mines | Core integrity fell below 50% 1468 | -10/Mines | Deemed a non-threat by the Exiles lab entrance 1470 | -10/Mines | Discovered new exit (range 5) 1520 | -10/Mines | Found a hidden stash of uninstalled traps 1575 | -10/Mines | Learned Materials garrison access intel 1717 | -10/Mines | Entered Materials 1717 | -9/Materials | Accompanied by 2 allies 1717 | -9/Materials | Evolved 2 slots: Utility x1, Weapon x1 1722 | -9/Materials | Led the pair of lost Derelicts to an unsafe place 2546 | -9/Materials | Discovered new exit (range 7) 2802 | -9/Materials | Discovered new exit (range 6) 2860 | -9/Materials | Build established: Tank 3082 | -9/Materials | Identified exit to Mines 3082 | -9/Materials | Identified exit to Storage 3251 | -9/Materials | Discovered new exit (range 12) 3354 | -9/Materials | Entered Storage 3632 | -9/Storage | Identified exit to Garrison 3632 | -9/Storage | Entered Garrison 3672 | -9/Garrison | Installed Relay Interface Framework 3792 | -9/Garrison | Triggered checkpoint 3821 | -9/Garrison | Triggered checkpoint 3977 | -9/Garrison | Core integrity fell below 50% 4208 | -9/Garrison | Garrison Relay disabled 4270 | -9/Garrison | Triggered checkpoint 4328 | -9/Garrison | Triggered checkpoint 4470 | -9/Garrison | Discovered new exit (range 10) 4546 | -9/Garrison | Triggered checkpoint 4651 | -9/Garrison | Discovered new exit (range 13) 4720 | -9/Garrison | Triggered checkpoint 4930 | -9/Garrison | Triggered checkpoint 5010 | -9/Garrison | Entered Materials 5010 | -8/Materials | Accompanied by 2 allies 5010 | -8/Materials | Evolved 2 slots: Propulsion x1, Utility x1 5011 | -8/Materials | Loaded intel: 1 garrison access location 5195 | -8/Materials | Build established: Scavenger-Tank 5379 | -8/Materials | Lost 3 parts (1u2w) 5691 | -8/Materials | Build established: Scavenger-Gunner 5966 | -8/Materials | Identified exit to Garrison 5966 | -8/Materials | Entered Garrison 6382 | -8/Garrison | Expanded RIF knowledge: Signal Jamming 6430 | -8/Garrison | Triggered checkpoint 6479 | -8/Garrison | Discovered new exit (range 10) 6565 | -8/Garrison | Triggered checkpoint 6634 | -8/Garrison | Triggered checkpoint 6716 | -8/Garrison | Discovered new exit (range 10) 6752 | -8/Garrison | Expanded RIF knowledge: Structural Interface 6780 | -8/Garrison | Triggered checkpoint 6905 | -8/Garrison | Entered Factory 6905 | -7/Factory | Evolved 2 slots: Propulsion x1, Weapon x1 7212 | -7/Factory | Build established: Scavenger-Tank 7438 | -7/Factory | Discovered new exit (range 16) 7518 | -7/Factory | Build established: Scavenger-Gunner 7567 | -7/Factory | Cargo convoy interrupted 7649 | -7/Factory | Lost 6 parts (2n2u2w) 7654 | -7/Factory | Destroyed 8 combat bots 7672 | -7/Factory | System corruption reached 10% 7679 | -7/Factory | Found Prototype Launcher 7679 | -7/Factory | Identified Tesla Bomb Launcher 7712 | -7/Factory | Found Prototype Launcher 7816 | -7/Factory | Assembled infested ambush trap array 7885 | -7/Factory | Self-destructed Last Messages --------------- 07868_ D-53 Grenadier destroyed. 07868_ U-05 Engineer builds a Wall. 07870_ Acquired Ion Burst Cannon. 07870_ R-06 Scavenger collects Particle Gun. 07871_ Dropped Hcp. Battery. 07871_ U-05 Engineer lays Concrete. 07872_ Extracted 86 energy. 07872_ U-05 Engineer lays Concrete. 07872_ D-53 Grenadier destroyed. 07872_ U-05 Engineer lays Concrete. 07873_ Extracted 23 energy. 07873_ U-05 Engineer lays Concrete. 07874_ U-05 Engineer builds a Wall. 07874_ U-05 Engineer lays Concrete. 07874_ Acquired Hcp. Battery. 07874_ U-05 Engineer lays Concrete. 07875_ U-05 Engineer builds a Wall. 07875_ U-05 Engineer lays Concrete. 07880_ U-05 Engineer builds a Wall. 07881_ U-05 Engineer lays Concrete. Map ----- +----------------------------------------------------+ | ?????????????????????????????????????????????????? | | ?????????????????????????????????????????????????? | | ?????????????????????????????????????????????????? | | ?????????????????????????????????????????????????? | | ?????????????????????????????????????????????????? | | ?????????????????????????????????????????????????? | | ?????????????????????????????????????????????????? | | ???????????????????????????????????????########### | | ??????????????????????????????? ???????# | | ?????????????????????????? ???? #?????# | | ?????????????????????????? ???? #?????# | | ????????????????????????? ??? #?????# | | ?????????????????????????" "?? !#?????# | | ????????????????????????"" "?? #?????# | | ????????????????????????"" """ #?????# | | ??????????????"""??? ?? ! #?????# | | ????????????? ??? """ """ #?????# | | ????????????? p ??? """ """ #?????? | | ???????????? r u???""" """ #######?? | | ???????????? g#??? # ? ? | | ???????????? ;##### #######+### | | ????????????" gg | | ????????????" u | | ???????????"" | | ?????????? " """ """ " | | ?????????? u @ u """ """ """ " | | ?????????????# #+######## """ """ """ " | | ?????????????????????????## | | ??????????????????????????### """ """ """ """ | | ????????????????????????????# """ """ """ """ | | ????????????????????????????# """ """ """ """ | | ????????????????????????????# | | ????????????????????????????# | | ???????????????????????????## #### | | ???????????????????????????# # | | ????????#??????????????????#T + | | ??????? #??????????????????## ############# | | ####### #???????????????????# #???????????# | | #???????????????????# #???????????# | | #???????????????????# #???????????# " | | #?????????????#########+##########????# " | | ###########+###??# #????# " | | # #### ! #????# " | | # ]]]+ + ! #????# " | | + [ ]]a#### ! [ #????# " | | ## # ]] #??# #????# | | ?##### #??# #????#### | | ?????# #??# #???????? | | ?????###############??# #???????? | | ??????????????????????####################???????? | +----------------------------------------------------+ Best States ------------- Heat Dissipation 56 Energy Generation 18 Energy Capacity 350 Matter Stores 300 Matter Capacity 300 Sight Range 16 Robot Scan Range 15 Terrain Scan Density 10 Jamming Range 12 Armor Coverage 300 Resistance: TH 10 Resistance: EM 15 Evasion (%) 40 Core Analysis 9 Recoil Reduction 4 Matter Filtering 50 Relay Coupler Types 1 Relay Coupler Value 27 Item Schematics ----------------- Hacking Suite | -9/Materials | Scanalyzed Imp. Assault Rifle | -9/Materials | Scanalyzed Lrg. Storage Unit | -9/Materials | Scanalyzed Seismic Detector | -9/Materials | Scanalyzed Arm. Wheel | -9/Materials | Scanalyzed Adv. Treads | -9/Storage | Hacked Robot Schematics ------------------ None Fabricated ------------ Nothing Repaired ---------- Nothing Studied --------- Lgt. Treads | -9/Materials | Hacked Grenade Launcher | -9/Materials | Hacked Imp. Treads | -9/Materials | Hacked Imp. Ion Engine | -9/Materials | Hacked Arm. Wheel | -8/Materials | Hacked Katana | -8/Materials | Hacked Alien Tech Used ----------------- None Achievements -------------- None Challenges ------------ None Game ------ Seed TerrabombWaveLoader Manual? 0 Play Time 01:24:09 Cumulative 296.0 hours Start 2026.06.27 @ 11:18:02 End 2026.06.28 @ 20:56:57 Sessions 5 Manual Loads 0 Difficulty Rogue Special Mode None Game No. 119 Rogue 114 Adventurer 5 Explorer 0 Win Type - Total 8 Types 4/0/2/1/0/0/0/0/0/1 Lore% 74 Gallery% 71 Achievement% 64 Wizard Run 0 Options --------- Layout 0 ASCII 0 Keyboard 0 Movement Numpad Keybinds 0 Fullscreen 1 Font 18/SmallcapsGlow Map View 76x50 Zoom Use 0% Tactical HUD 1 Map Filters NONE Filters NONE Steam 1 RUN: fbdf3c05-95f9-4838-947e-c6ca39b68d82